[Event "GER-ch Youth-U18w 2022"]
[Site "Willingen"]
[Date "2022.06.09"]
[Round "7.1"]
[White "Bardorz, Jana"]
[Black "Heutling, Elina"]
[Result "1-0"]
[ECO "B01"]
[WhiteElo "1974"]
[BlackElo "1798"]
[Annotator "TA"]
[PlyCount "81"]
[EventDate "2022.06.05"]
[EventType "swiss"]
[EventRounds "9"]
[EventCountry "GER"]
[SourceTitle "playchess.com"]
[Source "ChessBase"]
[SourceQuality "1"]
[TimeControl "40/4500+30:900+30"]

{[%evp 11,81,44,36,33,48,28,21,19,32,4,0,-6,0,0,11,-47,-19,-7,-12,-18,-17,-39,-41,-88,-41,-25,-29,-28,91,90,87,97,94,62,106,42,216,0,0,0,27,20,22,29,70,65,72,74,179,174,179,161,160,193,321,141,166,155,152,151,29987,29988,29987,29988,29973,29974,4914,1076,29978,29979,29989,29990]} 1. e4 {[%emt 0:00:00]} d5 {[%emt 0:00:00]} 2. exd5 {[%emt 0:00:00]} Qxd5 {[%emt 0:00:00]} 3. Nc3 {[%emt 0:00:00]} Qd8 {[%emt 0:00:00]} 4. d4 {[%emt 0:00:00]} Nf6 {[%emt 0:00:00]} 5. Bc4 {[%emt 0:00:00]} c6 {[%emt 0:00:00]} 6. Nf3 {[%emt 0:00:00]} Bf5 {[%emt 0:00:00]} 7. O-O {[%emt 0:00:00] B01: Scandinavian Defence.} e6 {[%emt 0:00:00]} 8. Re1 {[%emt 0:00:00]} (8. Nh4 $5 {[%cal Rh4f5]}) 8... Be7 {[%emt 0:00:23]} 9. Bf4 {[%emt 0:01:46] The position is equal.} O-O {[%emt 0:02:38]} 10. Qd2 {[%emt 0:04:11]} Nbd7 {[%emt 0:05:46][%cal Bb8d7,Bd7b6,Bb6d5,Bd5c3][%mdl 32]} 11. h3 {[%emt 0:02:18]} Nb6 {[%emt 0:06:07] [#]} 12. Bf1 $146 {[%emt 0:03:04]} ({Predecessor:} 12. Bd3 Bxd3 13. Qxd3 Nbd5 14. Bh2 h6 15. Ne4 Nxe4 16. Qxe4 Nf6 17. Qe2 {0-1 (57) Dominguez,P (1905)-Canizares Cuadra,P (2164) IECC email 2005}) 12... Nbd5 {[%emt 0:05:18]} 13. Bh2 {[%emt 0:02:37]} (13. Nxd5 $11 cxd5 14. Bd3) 13... Nxc3 {[%emt 0:12:33]} (13... Bb4 $5 {[%cal Rf6e4]} 14. Bd3 Qa5 $11) 14. bxc3 {[%emt 0:07:48]} Qa5 {[%emt 0:09:07]} 15. Bd3 {[%emt 0:08:48] Against Ne4} Bxd3 {[%emt 0:06:56]} 16. Qxd3 {[%emt 0:02:30]} c5 {[%emt 0:02:30]} 17. Reb1 {[%emt 0:05:07] [#]} (17. a4 $15 {was preferrable.}) 17... c4 {[%emt 0:08:29]} ({Better is} 17... b6 $1 $17) 18. Qxc4 $15 {[%emt 0:03:37]} Rfc8 {[%emt 0:01:25]} 19. Qb3 {[%emt 0:02:05]} b6 {[%emt 0:01:51]} (19... Qxc3 $11 20. Qxc3 (20. Qxb7 Nd5 $11) 20... Rxc3) 20. c4 $16 {[%emt 0:01:43]} Ne4 {[%emt 0:02:09]} 21. Qd3 {[%emt 0:04:28]} f5 {[%emt 0:03:25]} 22. Ne5 {[%emt 0:07:05]} Bf6 {[%emt 0:11:45] [#]} 23. a4 {[%emt 0:07:11]} (23. f3 $1 $16 {[%cal Rf3e4]} Nd6 24. Re1) 23... Qc3 $2 {[%emt 0:02:50]} (23... Qd2 $14) 24. Qxc3 $2 {[%emt 0:07:43]} (24. f3 $18 Qxd3 25. cxd3) 24... Nxc3 $11 {[%emt 0:00:02]} 25. Re1 {[%emt 0:01:22]} Bxe5 {[%emt 0:02:31]} 26. Rxe5 {[%emt 0:01:52]} ({But not} 26. Bxe5 Rxc4 27. a5 b5 $15) 26... Rxc4 {[%emt 0:00:04]} 27. Rxe6 {[%emt 0:00:58]} Kf7 {[%emt 0:00:47]} 28. Rae1 {[%emt 0:01:35] Threatens to win with Re7+.} Ne4 {[%emt 0:00:21]} 29. d5 {[%emt 0:00:31][%cal Bd4d5,Bd5d6][%mdl 32] aiming for f3.} Rxc2 {[%emt 0:00:55]} (29... Rd8 $16) 30. f3 $18 {[%emt 0:00:36]} Nf6 {[%emt 0:00:16]} 31. Re7+ {[%emt 0:01:34]} Kg6 {[%emt 0:00:45]} 32. d6 {[%emt 0:01:26]} a5 {[%emt 0:01:41]} (32... Rd2 $142 33. Bf4 Rd5) 33. Rc7 {[%emt 0:06:16]} (33. Rd1 $18) 33... Rd2 {[%emt 0:00:38]} 34. Ree7 $36 {[%emt 0:00:43][%mdl 2048] Keeping Black busy.} Rd1+ {[%emt 0:00:21]} 35. Kf2 {[%emt 0:00:11]} Re8 $2 {[%emt 0:00:27]} (35... Nd5 $16) 36. Rxg7+ {[%emt 0:01:06]} Kh5 {[%emt 0:00:26]} 37. Bf4 {[%emt 0:01:58] Active counter play!} h6 {[%emt 0:00:01]} 38. Rcf7 {[%emt 0:00:49]} Re6 {[%emt 0:00:34]} 39. Re7 {[%emt 0:01:19]} (39. d7 $142 Rxd7 40. Rxf6 Rxf6 41. Rxd7) 39... Rxe7 {[%emt 0:00:52]} 40. dxe7 {[%emt 0:00:06]} Rb1 {[%emt 0:01:02]} 41. Be5 {[%emt 0:00:00] Weighted Error Value: White=0.26 (precise) /Black=0.60} 1-0

[Event "GER-ch Youth-U18w 2022"]
[Site "Willingen"]
[Date "2022.06.09"]
[Round "7.2"]
[White "Rudolph, Eva"]
[Black "Dietz, Kristin"]
[Result "1-0"]
[ECO "B15"]
[WhiteElo "1860"]
[BlackElo "1707"]
[Annotator "NA RC COMBH"]
[PlyCount "88"]
[EventDate "2022.06.05"]
[EventType "swiss"]
[EventRounds "9"]
[EventCountry "GER"]
[SourceTitle "playchess.com"]
[Source "ChessBase"]
[SourceQuality "1"]
[TimeControl "40/4500+30:900+30"]

1. e4 {[%emt 0:00:00]} c6 {[%emt 0:00:00]} 2. d4 {[%emt 0:00:00]} d5 {[%emt 0:00:00]} 3. Nc3 {[%emt 0:00:00]} dxe4 {[%emt 0:00:00]} 4. Nxe4 {[%emt 0:00:00]} Nf6 {[%emt 0:00:00]} 5. Nxf6+ {[%emt 0:00:00]} exf6 {[%emt 0:00:00]} 6. c3 {[%emt 0:00:00]} Bd6 {[%emt 0:00:00]} 7. Bd3 {[%emt 0:00:00]} O-O {[%emt 0:00:00]} 8. Qc2 {[%emt 0:00:00]} Re8+ {[%emt 0:00:00]} 9. Ne2 {[%emt 0:00:00]} h5 {[%emt 0:00:00]} 10. O-O {[%emt 0:00:00]} h4 {[%emt 0:00:00]} 11. h3 {[%emt 0:01:13]} Nd7 {[%emt 0:00:00]} 12. f4 {[%emt 0:14:00]} Nf8 {[%emt 0:00:00]} 13. f5 {[%emt 0:01:09]} Nh7 {[%emt 0:00:00]} 14. Nf4 {[%emt 0:04:18]} Ng5 {[%emt 0:11:04]} 15. Nh5 {[%emt 0:08:51]} Nh7 {[%emt 0:18:39]} 16. Qf2 {[%emt 0:03:44]} Bxf5 {[%emt 0:07:40]} 17. Qxf5 {[%emt 0:06:01]} g6 {[%emt 0:01:48]} 18. Nxf6+ {[%emt 0:03:35]} Nxf6 {[%emt 0:01:18]} 19. Qxf6 {[%emt 0:00:12]} Qxf6 {[%emt 0:00:16]} 20. Rxf6 {[%emt 0:00:11]} Re1+ {[%emt 0:00:19]} 21. Rf1 {[%emt 0:00:21]} Rae8 {[%emt 0:00:19]} 22. Bg5 {[%emt 0:02:12]} Rxa1 {[%emt 0:00:38]} 23. Rxa1 {[%emt 0:00:07]} Bg3 {[%emt 0:00:08]} 24. Rf1 {[%emt 0:00:37]} Kg7 25. Bf6+ {[%emt 0:00:46]} Kh6 {[%emt 0:02:31]} 26. Bc4 {[%emt 0:00:31]} g5 {[%emt 0:01:21]} 27. Be5 {[%emt 0:05:42]} Bxe5 {[%emt 0:00:49]} 28. dxe5 {[%emt 0:00:12]} Rxe5 {[%emt 0:00:05]} 29. Rf6+ {[%emt 0:00:18]} Kg7 {[%emt 0:00:14]} 30. Rxf7+ {[%emt 0:00:11]} Kg6 {[%emt 0:00:06]} 31. Rxb7 {[%emt 0:00:35]} a5 {[%emt 0:01:46]} 32. Rc7 {[%emt 0:02:23]} Rc5 {[%emt 0:00:29]} 33. Bb3 {[%emt 0:00:14]} Kf5 {[%emt 0:00:36]} 34. Kf2 {[%emt 0:00:40]} Rb5 {[%emt 0:01:14]} 35. Ke3 {[%emt 0:03:39]} a4 {[%emt 0:01:08]} 36. Bxa4 {[%emt 0:06:38]} Rxb2 {[%emt 0:00:08]} 37. Bxc6 {[%emt 0:00:52]} Rxa2 {[%emt 0:00:09]} 38. Be4+ {[%emt 0:00:00]} Kf6 {[%emt 0:00:04]} 39. Kd4 {[%emt 0:00:00]} Rd2+ {[%emt 0:00:00]} 40. Kc4 {[%emt 0:00:00]} Rd1 {[%emt 0:00:00]} 41. Rg7 {[%emt 0:14:51]} Rc1 {[%emt 0:14:35]} 42. Kb5 Re1 {[%emt 0:00:15]} 43. Bf3 {[%emt 0:01:46]} Re5+ {[%emt 0:00:13]} 44. Kb6 {[%emt 0:01:11]} Re1 {[%emt 0:00:07]} 1-0

[Event "GER-ch Youth-U18w 2022"]
[Site "Willingen"]
[Date "2022.06.09"]
[Round "7.3"]
[White "Dartmann Aubanell, Catriona"]
[Black "Kroemer, Paulina"]
[Result "1-0"]
[ECO "B28"]
[WhiteElo "1874"]
[BlackElo "1583"]
[Annotator "NA RC COMBH"]
[PlyCount "79"]
[EventDate "2022.06.05"]
[EventType "swiss"]
[EventRounds "9"]
[EventCountry "GER"]
[SourceTitle "playchess.com"]
[Source "ChessBase"]
[SourceQuality "1"]
[TimeControl "40/4500+30:900+30"]

1. e4 {[%emt 0:00:00]} c5 {[%emt 0:00:00]} 2. Nf3 {[%emt 0:00:00]} a6 {[%emt 0:00:00]} 3. c3 {[%emt 0:00:00]} d5 {[%emt 0:00:00]} 4. exd5 {[%emt 0:00:00]} Qxd5 {[%emt 0:00:00]} 5. d4 {[%emt 0:00:00]} Nf6 {[%emt 0:00:00]} 6. h3 {[%emt 0:00:00]} cxd4 7. cxd4 {[%emt 0:00:00]} e6 {[%emt 0:00:00]} 8. Nc3 {[%emt 0:00:00]} Qd8 {[%emt 0:00:00]} 9. Bg5 {[%emt 0:00:00]} h6 {[%emt 0:00:00]} 10. Bh4 {[%emt 0:00:00]} Be7 {[%emt 0:00:00]} 11. Bd3 {[%emt 0:00:00]} O-O {[%emt 0:00:15]} 12. Ne5 {[%emt 0:02:38]} Nbd7 {[%emt 0:06:04]} 13. O-O {[%emt 0:02:40]} Nd5 {[%emt 0:08:29]} 14. Bxe7 {[%emt 0:06:31]} Nxe7 {[%emt 0:00:08]} 15. Qf3 {[%emt 0:08:23]} Nf6 {[%emt 0:04:00]} 16. Rfd1 {[%emt 0:10:43]} Rb8 {[%emt 0:07:26]} 17. Ne4 {[%emt 0:05:33]} Ned5 {[%emt 0:10:07]} 18. Ng4 {[%emt 0:11:43]} Nxg4 {[%emt 0:09:13]} 19. hxg4 {[%emt 0:02:06]} b6 {[%emt 0:11:27]} 20. Qg3 {[%emt 0:10:51]} Bb7 {[%emt 0:04:58]} 21. g5 {[%emt 0:01:42]} hxg5 {[%emt 0:06:33]} 22. Nxg5 {[%emt 0:00:06]} Qf6 {[%emt 0:03:41]} 23. Nh7 {[%emt 0:01:30]} Qh6 {[%emt 0:04:50]} 24. Nxf8 {[%emt 0:01:34]} Rxf8 {[%emt 0:00:06]} 25. Be4 {[%emt 0:02:29]} Nf4 {[%emt 0:03:16]} 26. Qf3 {[%emt 0:00:25]} Bxe4 {[%emt 0:01:17]} 27. Qxe4 {[%emt 0:00:03]} f5 {[%emt 0:00:34]} 28. Qf3 {[%emt 0:05:12]} Rf6 {[%emt 0:00:44]} 29. g3 {[%emt 0:00:52]} Nd5 {[%emt 0:04:35]} 30. Kg2 {[%emt 0:01:51]} Rg6 {[%emt 0:00:15]} 31. Rh1 {[%emt 0:01:10]} Qd2 {[%emt 0:00:04]} 32. Rh4 {[%emt 0:05:28]} f4 {[%emt 0:00:48]} 33. Rah1 {[%emt 0:04:31]} Ne3+ {[%emt 0:01:32]} 34. Kh3 {[%emt 0:01:10]} fxg3 {[%emt 0:00:55]} 35. Qxe3 {[%emt 0:00:43]} g2 {[%emt 0:00:08]} 36. Rg1 {[%emt 0:00:22]} Qc2 {[%emt 0:00:18]} 37. Rxg2 {[%emt 0:00:29]} Qf5+ {[%emt 0:00:11]} 38. Kh2 {[%emt 0:01:01]} Rxg2+ {[%emt 0:00:12]} 39. Kxg2 {[%emt 0:00:04]} Qd5+ {[%emt 0:00:04]} 40. Qe4 {[%emt 0:00:36]} 1-0

[Event "GER-ch Youth-U18w 2022"]
[Site "Willingen"]
[Date "2022.06.09"]
[Round "7.4"]
[White "Falke, Ornella"]
[Black "Cheredzhiyska, Iva"]
[Result "1-0"]
[ECO "C70"]
[WhiteElo "1844"]
[BlackElo "1696"]
[Annotator "NA RC COMBH"]
[PlyCount "113"]
[EventDate "2022.06.05"]
[EventType "swiss"]
[EventRounds "9"]
[EventCountry "GER"]
[SourceTitle "playchess.com"]
[Source "ChessBase"]
[SourceQuality "1"]
[TimeControl "40/4500+30:900+30"]

1. e4 {[%emt 0:00:00]} e5 {[%emt 0:00:00]} 2. Nf3 {[%emt 0:00:00]} Nc6 {[%emt 0:00:00]} 3. Bb5 {[%emt 0:00:00]} a6 {[%emt 0:00:00]} 4. Ba4 {[%emt 0:00:00]} Bc5 {[%emt 0:00:00]} 5. O-O {[%emt 0:00:00]} b5 {[%emt 0:00:00]} 6. Bb3 {[%emt 0:00:00]} d6 {[%emt 0:00:00]} 7. a4 {[%emt 0:00:00]} Bb7 {[%emt 0:03:12]} 8. c3 {[%emt 0:00:00]} h6 {[%emt 0:08:02]} 9. d4 {[%emt 0:01:14]} Bb6 {[%emt 0:00:49]} 10. axb5 {[%emt 0:20:24]} axb5 {[%emt 0:00:10]} 11. Rxa8 {[%emt 0:00:04]} Bxa8 {[%emt 0:00:42]} 12. Na3 {[%emt 0:00:31]} Nf6 {[%emt 0:08:47]} 13. Bc2 {[%emt 0:08:07]} O-O {[%emt 0:02:23]} 14. Nxb5 {[%emt 0:03:53]} Re8 {[%emt 0:03:39]} 15. d5 {[%emt 0:00:59]} Ne7 {[%emt 0:05:57]} 16. c4 {[%emt 0:00:25]} Ng6 {[%emt 0:01:18]} 17. Nc3 {[%emt 0:00:40]} Qe7 {[%emt 0:02:26]} 18. Ne2 {[%emt 0:02:47]} Bc5 {[%emt 0:05:53]} 19. Ng3 {[%emt 0:02:25]} Rb8 {[%emt 0:06:14]} 20. Ba4 {[%emt 0:03:36]} Qd8 {[%emt 0:02:04]} 21. Qc2 {[%emt 0:00:26]} Nf8 {[%emt 0:03:52]} 22. Bd2 {[%emt 0:00:53]} N8d7 {[%emt 0:01:06]} 23. Bb5 {[%emt 0:00:46]} Bb7 {[%emt 0:04:31]} 24. b4 {[%emt 0:00:11]} Bb6 {[%emt 0:00:15]} 25. h3 {[%emt 0:00:42]} Ra8 {[%emt 0:00:54]} 26. Ba4 {[%emt 0:01:10]} Ra7 {[%emt 0:03:15]} 27. Bb3 {[%emt 0:05:54]} Qa8 {[%emt 0:01:47]} 28. Bc3 {[%emt 0:01:05]} Ra6 {[%emt 0:05:31]} 29. Nh4 {[%emt 0:01:50]} c6 {[%emt 0:02:39]} 30. Nhf5 {[%emt 0:00:31]} Bc7 {[%emt 0:01:45]} 31. dxc6 {[%emt 0:02:11]} Rxc6 {[%emt 0:03:17]} 32. Ne7+ {[%emt 0:00:12]} Kf8 {[%emt 0:00:15]} 33. Nxc6 {[%emt 0:00:04]} Bxc6 {[%emt 0:00:05]} 34. Ra1 {[%emt 0:00:25]} Qb7 {[%emt 0:00:52]} 35. f3 {[%emt 0:00:28]} Bb6+ {[%emt 0:02:00]} 36. Kh1 {[%emt 0:00:15]} Qc7 {[%emt 0:01:25]} 37. Qd2 {[%emt 0:00:57]} Ne8 {[%emt 0:03:24]} 38. Nf5 {[%emt 0:00:24]} Qb8 {[%emt 0:01:30]} 39. Ne3 {[%emt 0:01:00]} Ndf6 {[%emt 0:00:43]} 40. Nd5 {[%emt 0:01:07]} Nxd5 {[%emt 0:00:41]} 41. exd5 {[%emt 0:15:13]} Bd7 {[%emt 0:15:53]} 42. Ba4 {[%emt 0:05:01]} Bf5 {[%emt 0:02:55]} 43. Bc6 {[%emt 0:00:41]} Qc7 {[%emt 0:00:00]} 44. Ra8 {[%emt 0:00:00]} Bd7 {[%emt 0:00:00]} 45. Bxd7 {[%emt 0:00:00]} Qxd7 {[%emt 0:00:00]} 46. Qc2 {[%emt 0:00:00]} Ke7 {[%emt 0:00:00]} 47. f4 {[%emt 0:00:00]} Nc7 {[%emt 0:00:00]} 48. Rg8 {[%emt 0:00:00]} Ne8 {[%emt 0:00:00]} 49. fxe5 {[%emt 0:00:00]} dxe5 {[%emt 0:00:00]} 50. c5 {[%emt 0:00:00]} f6 {[%emt 0:00:00]} 51. d6+ {[%emt 0:00:00]} Kf7 {[%emt 0:00:00]} 52. Qa2+ {[%emt 0:00:00]} Kg6 {[%emt 0:00:00]} 53. cxb6 {[%emt 0:00:00]} Qc6 {[%emt 0:00:00]} 54. b7 {[%emt 0:00:00]} Qxb7 {[%emt 0:00:00]} 55. Rxe8 {[%emt 0:00:00]} Qc6 {[%emt 0:00:00]} 56. Qc2+ {[%emt 0:00:00]} Kf7 {[%emt 0:00:00]} 57. Re7+ 1-0

[Event "GER-ch Youth-U18w 2022"]
[Site "Willingen"]
[Date "2022.06.09"]
[Round "7.5"]
[White "Goetten Wagner, Julia"]
[Black "Basovskiy, Jana"]
[Result "0-1"]
[ECO "B40"]
[WhiteElo "1631"]
[BlackElo "1938"]
[Annotator "TA"]
[PlyCount "66"]
[EventDate "2022.06.05"]
[EventType "swiss"]
[EventRounds "9"]
[EventCountry "GER"]
[SourceTitle "playchess.com"]
[Source "ChessBase"]
[SourceQuality "1"]
[TimeControl "40/4500+30:900+30"]

{[%evp 17,66,21,39,4,30,18,18,0,14,5,4,11,7,-78,-84,-141,-137,-225,-181,-181,-88,-95,-76,-80,-82,-81,-87,-540,-489,-495,-494,-472,-450,-449,-435,-512,-512,-512,-501,-531,-542,-550,-547,-572,-554,-568,-529,-997,-1000,-12840,-804]} 1. e4 {[%emt 0:00:00]} c5 {[%emt 0:00:00]} 2. Nf3 {[%emt 0:00:00]} e6 {[%emt 0:00:00]} 3. g3 {[%emt 0:00:00]} Nc6 {[%emt 0:00:00]} 4. Bg2 {[%emt 0:00:00]} Nf6 {[%emt 0:00:00]} 5. Nc3 {[%emt 0:00:00]} d6 {[%emt 0:00:00]} 6. O-O {[%emt 0:00:00]} Be7 {[%emt 0:00:00]} 7. Re1 {[%emt 0:00:00]} O-O {[%emt 0:00:00]} 8. d4 {[%emt 0:00:00]} cxd4 {[%emt 0:00:00]} 9. Nxd4 {[%emt 0:00:00]} Bd7 {[%emt 0:00:00]} 10. b3 {B80: Sicilian Scheveningen: 6 g3 and 6 Be3, including English Attack.} Qb6 {[%emt 0:11:34] [#]} 11. Nce2 $146 {[%emt 0:13:19]} ({Predecessor:} 11. Nxc6 Bxc6 12. Nd5 exd5 13. exd5 Nxd5 14. Bxd5 Bf6 15. Be3 Qa5 16. Bxc6 Bxa1 17. Bxb7 Rab8 {½-½ (41) Schroeder,C (2137)-Pfreundt,J (2392) Hamburg 2019}) 11... d5 {[%emt 0:12:59]} 12. exd5 {[%emt 0:03:28] The position is equal.} Nxd5 {[%emt 0:01:46]} 13. c4 {[%emt 0:06:36]} Nf6 {[%emt 0:07:22]} 14. Be3 {[%emt 0:05:09] Nxc6 is the strong threat.} Bc5 {[%emt 0:04:01]} 15. Qd3 {[%emt 0:03:20]} (15. b4 $11 {keeps the balance.} Nxb4 16. a3) 15... Ne5 $17 {[%emt 0:07:15][%cal Bc6e5,Be5g4,Bg4e3][%mdl 32]} 16. Qc2 {[%emt 0:05:33] [#]} (16. Qd2 $142) 16... Neg4 $1 {[%emt 0:00:30]} 17. Qd3 (17. Qc1 $17) 17... Nxe3 {[%emt 0:11:20]} 18. fxe3 {[%emt 0:06:43] [#]} e5 {[%emt 0:00:47]} (18... Rfd8 $1 $19 {Strongly threatening ...e5.} 19. Nc3 Be8) 19. Nc2 {[%emt 0:00:26]} a5 {[%emt 0:02:20]} 20. Nc3 {[%emt 0:02:02]} Rad8 $36 {[%emt 0:00:53][%mdl 2048] Keeping White busy.} 21. Nd5 {[%emt 0:03:38]} Nxd5 {[%emt 0:00:20]} 22. Qxd5 {[%emt 0:00:50][%mdl 8192] White does not recover from this.} (22. Bxd5 $17 {is a better chance.} g6 23. Rf1) 22... Bf5 {[%emt 0:01:18] A strong pair of Bishops. Black is clearly winning.} 23. Qxb7 {[%emt 0:03:21]} Qxb7 {[%emt 0:02:56]} ({Don't blunder} 23... Bxc2 $2 24. Qxb6 Bxb6 25. Bd5 $19) 24. Bxb7 {[%emt 0:00:10]} Bxc2 {[%emt 0:00:03]} 25. Bd5 {[%emt 0:00:40]} a4 {[%emt 0:01:22]} 26. Rac1 {[%emt 0:02:25]} axb3 {[%emt 0:00:13]} 27. axb3 {[%emt 0:00:40]} Bxb3 {[%emt 0:00:13]} 28. Rb1 {[%emt 0:03:15]} Rb8 {[%emt 0:01:15]} 29. Kg2 {[%emt 0:00:40]} g6 {[%emt 0:02:27]} 30. e4 {[%emt 0:00:37]} Kg7 {[%emt 0:00:31]} 31. g4 {[%emt 0:00:31]} Ba4 {[%emt 0:00:41]} 32. Ra1 {[%emt 0:01:26]} Rb2+ {[%emt 0:00:14]} 33. Kh3 {[%emt 0:01:41]} Bd7 {[%emt 0:00:29] Weighted Error Value: White=1.00/Black=0.15 (very precise)} 0-1

[Event "GER-ch Youth-U18w 2022"]
[Site "Willingen"]
[Date "2022.06.09"]
[Round "7.6"]
[White "Schneider, Katharina"]
[Black "Yue, Qizhou"]
[Result "1-0"]
[ECO "B28"]
[WhiteElo "1810"]
[BlackElo "1715"]
[Annotator "NA RC COMBH"]
[PlyCount "89"]
[EventDate "2022.06.05"]
[EventType "swiss"]
[EventRounds "9"]
[EventCountry "GER"]
[SourceTitle "playchess.com"]
[Source "ChessBase"]
[SourceQuality "1"]
[TimeControl "40/4500+30:900+30"]

1. e4 {[%emt 0:00:00]} c5 {[%emt 0:00:00]} 2. Nf3 {[%emt 0:00:00]} a6 {[%emt 0:00:00]} 3. d4 {[%emt 0:00:00]} cxd4 {[%emt 0:00:00]} 4. Nxd4 {[%emt 0:00:00]} Nf6 {[%emt 0:00:00]} 5. Nc3 {[%emt 0:00:00]} e5 {[%emt 0:00:00]} 6. Nb3 {[%emt 0:00:00]} Nc6 {[%emt 0:00:00]} 7. f3 {[%emt 0:00:01]} d6 {[%emt 0:00:00]} 8. Be3 {[%emt 0:00:28]} Be6 {[%emt 0:00:26]} 9. Qd2 {[%emt 0:00:14]} Be7 {[%emt 0:06:22]} 10. O-O-O {[%emt 0:02:35]} Qc7 {[%emt 0:07:05]} 11. Kb1 {[%emt 0:00:48]} Nd7 {[%emt 0:06:10]} 12. g4 {[%emt 0:04:21]} b5 {[%emt 0:09:20]} 13. h4 {[%emt 0:00:34]} Nb6 {[%emt 0:08:37]} 14. h5 {[%emt 0:08:54]} Nc4 {[%emt 0:04:54]} 15. Bxc4 {[%emt 0:01:11]} bxc4 {[%emt 0:00:11]} 16. Nc1 {[%emt 0:01:00]} Rb8 {[%emt 0:02:57]} 17. g5 {[%emt 0:02:12]} Qb7 {[%emt 0:02:43]} 18. b3 {[%emt 0:02:39]} Nb4 {[%emt 0:08:40]} 19. Nd5 {[%emt 0:03:27]} Nxd5 {[%emt 0:04:14]} 20. exd5 {[%emt 0:00:05]} Bf5 {[%emt 0:00:22]} 21. Rh2 {[%emt 0:11:17]} Kd7 {[%emt 0:05:07]} 22. f4 {[%emt 0:05:57]} Rhc8 {[%emt 0:02:43]} 23. Qe1 {[%emt 0:05:50]} Qc7 {[%emt 0:03:22]} 24. Ka1 {[%emt 0:02:43]} a5 {[%emt 0:07:41]} 25. fxe5 {[%emt 0:09:18]} dxe5 {[%emt 0:00:47]} 26. d6 {[%emt 0:05:04]} Bxd6 {[%emt 0:00:31]} 27. Rhd2 {[%emt 0:00:23]} cxb3 {[%emt 0:04:24]} 28. Rxd6+ {[%emt 0:02:03]} Ke7 {[%emt 0:01:08]} 29. Nxb3 {[%emt 0:02:42]} Qxd6 {[%emt 0:01:15]} 30. Rxd6 {[%emt 0:00:14]} Kxd6 {[%emt 0:00:04]} 31. Bc5+ {[%emt 0:01:18]} Rxc5 {[%emt 0:01:14]} 32. Nxc5 {[%emt 0:00:15]} Bxc2 {[%emt 0:00:34]} 33. Qd2+ {[%emt 0:00:11]} Kxc5 {[%emt 0:00:12]} 34. Qxc2+ {[%emt 0:00:09]} Kd4 {[%emt 0:00:11]} 35. Qxh7 {[%emt 0:02:06]} e4 {[%emt 0:00:26]} 36. Qxg7+ {[%emt 0:00:14]} Kd3 {[%emt 0:00:14]} 37. Qxf7 {[%emt 0:02:34]} e3 {[%emt 0:00:39]} 38. Qd7+ {[%emt 0:01:10]} Ke4 {[%emt 0:00:16]} 39. Qg4+ {[%emt 0:02:43]} Kd3 {[%emt 0:00:28]} 40. Qd1+ {[%emt 0:00:22]} Kc3 {[%emt 0:00:58]} 41. g6 {[%emt 0:15:56]} Re8 {[%emt 0:16:04]} 42. g7 {[%emt 0:07:49]} e2 {[%emt 0:00:00]} 43. Qe1+ {[%emt 0:00:00]} Kd3 {[%emt 0:00:00]} 44. h6 {[%emt 0:00:00]} Ke3 {[%emt 0:00:00]} 45. h7 {[%emt 0:00:00]} 1-0

[Event "GER-ch Youth-U18w 2022"]
[Site "Willingen"]
[Date "2022.06.09"]
[Round "7.7"]
[White "Berghold, Lotta"]
[Black "Wilmink, Anna"]
[Result "1-0"]
[ECO "A46"]
[WhiteElo "1482"]
[BlackElo "1700"]
[Annotator "NA RC COMBH"]
[PlyCount "97"]
[EventDate "2022.06.05"]
[EventType "swiss"]
[EventRounds "9"]
[EventCountry "GER"]
[SourceTitle "playchess.com"]
[Source "ChessBase"]
[SourceQuality "1"]
[TimeControl "40/4500+30:900+30"]

1. d4 {[%emt 0:00:00]} Nf6 {[%emt 0:00:00]} 2. Nf3 {[%emt 0:00:00]} d5 {[%emt 0:00:00]} 3. g3 {[%emt 0:00:00]} e6 {[%emt 0:00:00]} 4. Bg2 {[%emt 0:00:00]} Be7 {[%emt 0:00:00]} 5. O-O {[%emt 0:00:00]} O-O {[%emt 0:00:00]} 6. c4 {[%emt 0:00:00]} dxc4 {[%emt 0:00:00]} 7. Nbd2 {[%emt 0:00:00]} a6 {[%emt 0:00:00]} 8. Nxc4 {[%emt 0:00:00]} b5 {[%emt 0:00:00]} 9. Nfe5 {[%emt 0:00:00]} Nd5 {[%emt 0:00:00]} 10. Na5 {[%emt 0:20:40]} Bf6 {[%emt 0:00:43]} 11. e4 {[%emt 0:08:20]} Bxe5 {[%emt 0:03:55]} 12. exd5 {[%emt 0:01:24]} exd5 {[%emt 0:01:18]} 13. dxe5 {[%emt 0:00:33]} c6 {[%emt 0:01:44]} 14. Nb3 {[%emt 0:00:47]} Nd7 {[%emt 0:01:32]} 15. Re1 {[%emt 0:01:55]} Re8 {[%emt 0:01:34]} 16. Qd4 {[%emt 0:06:32]} Qe7 {[%emt 0:05:01]} 17. f4 {[%emt 0:03:02]} Rb8 {[%emt 0:03:48]} 18. Bd2 {[%emt 0:10:50]} Nb6 {[%emt 0:08:30]} 19. Bb4 {[%emt 0:02:12]} Qd8 {[%emt 0:00:23]} 20. Na5 {[%emt 0:04:38]} Ra8 {[%emt 0:13:09]} 21. Nxc6 {[%emt 0:01:15]} Qc7 {[%emt 0:00:13]} 22. Rac1 {[%emt 0:03:41]} Nc4 {[%emt 0:02:30]} 23. Bxd5 {[%emt 0:01:18]} Bb7 {[%emt 0:01:34]} 24. Bxc4 {[%emt 0:03:19]} bxc4 {[%emt 0:00:55]} 25. Rxc4 {[%emt 0:00:04]} Bxc6 {[%emt 0:00:24]} 26. Rec1 {[%emt 0:01:03]} Rac8 {[%emt 0:03:30]} 27. Rxc6 {[%emt 0:01:41]} Qxc6 {[%emt 0:00:39]} 28. Rxc6 {[%emt 0:00:06]} Rxc6 {[%emt 0:00:04]} 29. Bc3 {[%emt 0:00:23]} Kf8 {[%emt 0:01:52]} 30. Qd7 {[%emt 0:01:21]} Rb6 {[%emt 0:02:25]} 31. Bb4+ {[%emt 0:01:16]} Rxb4 {[%emt 0:00:19]} 32. Qd6+ {[%emt 0:00:03]} Kg8 {[%emt 0:00:32]} 33. Qxb4 {[%emt 0:00:07]} g6 {[%emt 0:00:17]} 34. Qc5 {[%emt 0:00:58]} Rd8 {[%emt 0:00:58]} 35. Qe3 {[%emt 0:01:13]} Rb8 {[%emt 0:00:36]} 36. b3 {[%emt 0:00:17]} a5 {[%emt 0:01:02]} 37. Qa7 {[%emt 0:00:51]} Rc8 {[%emt 0:00:32]} 38. Qxa5 {[%emt 0:00:17]} Rc1+ {[%emt 0:00:12]} 39. Kg2 {[%emt 0:00:06]} Rc2+ {[%emt 0:00:17]} 40. Kh3 {[%emt 0:00:54]} Kg7 {[%emt 0:01:02]} 41. b4 {[%emt 0:15:08]} h6 {[%emt 0:15:14]} 42. b5 {[%emt 0:00:21]} g5 {[%emt 0:00:18]} 43. fxg5 {[%emt 0:00:10]} hxg5 {[%emt 0:00:05]} 44. Qd8 {[%emt 0:00:18]} g4+ {[%emt 0:01:26]} 45. Kxg4 {[%emt 0:00:08]} Rxh2 {[%emt 0:00:26]} 46. Qf6+ {[%emt 0:00:20]} Kg8 {[%emt 0:00:33]} 47. b6 {[%emt 0:00:12]} Rb2 {[%emt 0:01:14]} 48. Qd8+ {[%emt 0:01:34]} Kh7 {[%emt 0:00:57]} 49. Qc7 {[%emt 0:00:11]} 1-0